[Event "*** SCC Grand Prix: Titled Tuesday Blitz"]
[Site "Chess.com"]
[Date "2020.07.07"]
[Round "2"]
[White "karinachess1"]
[Black "Gordima"]
[Result "0-1"]
[WhiteElo "2506"]
[BlackElo "2745"]
[TimeControl "180+1"]
[EndTime "10:19:52 PDT"]
[Termination "Gordima won by resignation"]

1. c4 {[%clk 0:03:00.9]} 1... e6 {[%clk 0:02:56.9]} 2. d4 {[%clk 0:02:57.7]}
2... d5 {[%clk 0:02:57.8]} 3. Nf3 {[%clk 0:02:57.6]} 3... Nf6 {[%clk 0:02:57.5]}
4. Nc3 {[%clk 0:02:56.1]} 4... Bb4 {[%clk 0:02:56.9]} 5. Qa4+ {[%clk 0:02:51.9]}
5... Nc6 {[%clk 0:02:56.7]} 6. Bd2 {[%clk 0:02:50.5]} 6... O-O {[%clk
0:02:39.4]} 7. e3 {[%clk 0:02:48.6]} 7... dxc4 {[%clk 0:02:33.3]} 8. Bxc4 {[%clk
0:02:47.5]} 8... Bd6 {[%clk 0:02:30]} 9. O-O {[%clk 0:02:34.8]} 9... a6 {[%clk
0:02:22.2]} 10. Qc2 {[%clk 0:02:31]} 10... b5 {[%clk 0:02:16.3]} 11. Be2 {[%clk
0:02:30.6]} 11... Bb7 {[%clk 0:02:16.3]} 12. Rad1 {[%clk 0:02:16.4]} 12... Ne7
{[%clk 0:01:58.8]} 13. a3 {[%clk 0:02:11.5]} 13... Ng6 {[%clk 0:01:41.7]} 14.
Rfe1 {[%clk 0:02:03.3]} 14... Qe7 {[%clk 0:01:40.8]} 15. e4 {[%clk 0:01:48.4]}
15... e5 {[%clk 0:01:35.2]} 16. Bf1 {[%clk 0:01:36.4]} 16... exd4 {[%clk
0:01:23.2]} 17. Nxd4 {[%clk 0:01:15.3]} 17... Qe5 {[%clk 0:01:19.7]} 18. Nf3
{[%clk 0:01:11.7]} 18... Qh5 {[%clk 0:01:20]} 19. h3 {[%clk 0:01:03.8]} 19...
Rae8 {[%clk 0:01:17.8]} 20. Bc1 {[%clk 0:00:34.2]} 20... Re7 {[%clk 0:00:50.2]}
21. Nd4 {[%clk 0:00:33.5]} 21... Nh4 {[%clk 0:00:43.2]} 22. Nf5 {[%clk
0:00:20.6]} 22... Nxf5 {[%clk 0:00:37.7]} 23. exf5 {[%clk 0:00:21.5]} 23... Rfe8
{[%clk 0:00:29.8]} 24. Rxe7 {[%clk 0:00:21.4]} 24... Rxe7 {[%clk 0:00:30.7]} 25.
Be3 {[%clk 0:00:21.6]} 25... Ng4 {[%clk 0:00:28.2]} 26. Ba7 {[%clk 0:00:16.9]}
26... Nf6 {[%clk 0:00:17.5]} 27. Be3 {[%clk 0:00:11.9]} 27... h6 {[%clk
0:00:15.7]} 28. Bd4 {[%clk 0:00:10.8]} 28... Qg5 {[%clk 0:00:11]} 29. Be3 {[%clk
0:00:08.1]} 29... Rxe3 {[%clk 0:00:08.4]} 30. fxe3 {[%clk 0:00:08.3]} 30...
Qxe3+ {[%clk 0:00:09.3]} 31. Kh1 {[%clk 0:00:05.7]} 31... Qg3 {[%clk 0:00:08.9]}
32. Rxd6 {[%clk 0:00:05.6]} 32... Qxh3+ {[%clk 0:00:05.5]} 33. Kg1 {[%clk
0:00:05.6]} 33... Qe3+ {[%clk 0:00:06]} 34. Qf2 {[%clk 0:00:05.5]} 34... Qxf2+
{[%clk 0:00:05.9]} 35. Kxf2 {[%clk 0:00:06.4]} 35... cxd6 {[%clk 0:00:06.5]} 36.
Bd3 {[%clk 0:00:06.7]} 36... Kf8 {[%clk 0:00:06.6]} 37. Ke3 {[%clk 0:00:06.6]}
37... Ke7 {[%clk 0:00:07.1]} 38. Kf4 {[%clk 0:00:06.9]} 38... Bxg2 {[%clk
0:00:06.2]} 39. a4 {[%clk 0:00:06]} 39... b4 {[%clk 0:00:04.7]} 40. Na2 {[%clk
0:00:05.3]} 40... a5 {[%clk 0:00:04.9]} 41. Nc1 {[%clk 0:00:05]} 41... Bc6
{[%clk 0:00:05.2]} 42. Kg3 {[%clk 0:00:05.1]} 42... Bxa4 {[%clk 0:00:04.9]} 43.
Ne2 {[%clk 0:00:04.5]} 43... Nd7 {[%clk 0:00:03.7]} 44. Nd4 {[%clk 0:00:04.6]}
44... Ne5 {[%clk 0:00:04.2]} 45. Be4 {[%clk 0:00:04.7]} 45... Kf6 {[%clk
0:00:04.8]} 46. Kf4 {[%clk 0:00:04.2]} 46... Bd7 {[%clk 0:00:05.7]} 47. Ne2
{[%clk 0:00:04]} 47... g5+ {[%clk 0:00:06]} 48. fxg6 {[%clk 0:00:03.9]} 48...
fxg6 {[%clk 0:00:06.9]} 49. Nd4 {[%clk 0:00:04.5]} 49... g5+ {[%clk 0:00:07.8]}
50. Ke3 {[%clk 0:00:05.4]} 50... h5 {[%clk 0:00:07.7]} 51. Kd2 {[%clk
0:00:05.3]} 51... Nc4+ {[%clk 0:00:07.9]} 52. Kc2 {[%clk 0:00:05.5]} 52... Ne5
{[%clk 0:00:08.8]} 53. b3 {[%clk 0:00:05.9]} 53... g4 {[%clk 0:00:09.7]} 54. Ne2
{[%clk 0:00:06.3]} 54... Kg5 {[%clk 0:00:10.5]} 55. Kd2 {[%clk 0:00:06.5]} 55...
h4 {[%clk 0:00:10.9]} 56. Ke3 {[%clk 0:00:07.1]} 56... h3 {[%clk 0:00:11.8]} 57.
Ng3 {[%clk 0:00:07.1]} 57... h2 {[%clk 0:00:11.7]} 58. Kf2 {[%clk 0:00:07.2]}
58... Be6 {[%clk 0:00:11.9]} 59. Kg2 {[%clk 0:00:07.4]} 59... Bxb3 {[%clk
0:00:12.1]} 60. Kxh2 {[%clk 0:00:07.2]} 60... a4 {[%clk 0:00:12.7]} 61. Ne2
{[%clk 0:00:06.7]} 61... a3 {[%clk 0:00:12.8]} 62. Nd4 {[%clk 0:00:06.3]} 62...
Bc4 {[%clk 0:00:12.2]} 63. Bb1 {[%clk 0:00:05.8]} 63... a2 {[%clk 0:00:12.4]}
64. Bxa2 {[%clk 0:00:05.9]} 64... Bxa2 {[%clk 0:00:13.3]} 65. Kg3 {[%clk
0:00:06.7]} 65... Bc4 {[%clk 0:00:13.2]} 66. Nc2 {[%clk 0:00:03.4]} 66... b3
{[%clk 0:00:13.4]} 67. Na3 {[%clk 0:00:03.6]} 67... b2 {[%clk 0:00:13.6]} 68.
Nb1 {[%clk 0:00:03.1]} 68... Bd3 {[%clk 0:00:14]} 69. Nd2 {[%clk 0:00:03.5]}
69... b1=Q {[%clk 0:00:14.3]} 70. Ne4+ {[%clk 0:00:03.4]} 70... Bxe4 {[%clk
0:00:13.7]} 0-1

[Event "*** SCC Grand Prix: Titled Tuesday Blitz"]
[Site "Chess.com"]
[Date "2020.07.07"]
[Round "2"]
[White "Fighter008"]
[Black "elamier"]
[Result "0-1"]
[WhiteElo "2591"]
[BlackElo "2305"]
[TimeControl "180+1"]
[EndTime "10:19:54 PDT"]
[Termination "elamier won by resignation"]

1. e4 {[%clk 0:02:58.7]} 1... c5 {[%clk 0:02:59.6]} 2. Nf3 {[%clk 0:02:58.4]}
2... e6 {[%clk 0:03:00.1]} 3. d4 {[%clk 0:02:58.4]} 3... cxd4 {[%clk 0:03:00.6]}
4. Nxd4 {[%clk 0:02:58.7]} 4... Nf6 {[%clk 0:03:01.1]} 5. Nc3 {[%clk 0:02:57.4]}
5... Nc6 {[%clk 0:03:01.5]} 6. Ndb5 {[%clk 0:02:56.2]} 6... Bb4 {[%clk
0:03:01.7]} 7. Nd6+ {[%clk 0:02:54.3]} 7... Ke7 {[%clk 0:03:00.2]} 8. Nxc8+
{[%clk 0:02:52.6]} 8... Rxc8 {[%clk 0:03:01.1]} 9. Bd3 {[%clk 0:02:52.5]} 9...
d5 {[%clk 0:03:01.2]} 10. exd5 {[%clk 0:02:51.2]} 10... Qxd5 {[%clk 0:03:02.1]}
11. O-O {[%clk 0:02:50.2]} 11... Bxc3 {[%clk 0:03:02.5]} 12. bxc3 {[%clk
0:02:50.1]} 12... Rhd8 {[%clk 0:03:03.4]} 13. Ba3+ {[%clk 0:02:46.9]} 13... Ke8
{[%clk 0:03:03.9]} 14. Qe2 {[%clk 0:02:44.2]} 14... Qh5 {[%clk 0:02:55]} 15. f3
{[%clk 0:02:41.9]} 15... Qa5 {[%clk 0:02:50.6]} 16. Bb2 {[%clk 0:02:35.1]} 16...
Qb6+ {[%clk 0:02:50.3]} 17. Kh1 {[%clk 0:02:26.9]} 17... Qxb2 {[%clk 0:02:50.2]}
18. Rab1 {[%clk 0:02:27.2]} 18... Qxc3 {[%clk 0:02:49.9]} 19. Rxb7 {[%clk
0:02:26.6]} 19... Rd7 {[%clk 0:02:47.9]} 20. Rb3 {[%clk 0:02:19.8]} 20... Qe5
{[%clk 0:02:45.7]} 21. Qf2 {[%clk 0:02:15.9]} 21... Kf8 {[%clk 0:02:43.5]} 22.
Re1 {[%clk 0:02:12.2]} 22... Qd4 {[%clk 0:02:41.5]} 23. Qg3 {[%clk 0:02:11]}
23... Kg8 {[%clk 0:02:38.6]} 24. h4 {[%clk 0:01:58.4]} 24... Nh5 {[%clk
0:02:23.5]} 25. Qh3 {[%clk 0:01:38.9]} 25... Nf4 {[%clk 0:02:20.5]} 26. Qg3
{[%clk 0:01:37.7]} 26... Ne5 {[%clk 0:02:06.3]} 27. Re4 {[%clk 0:01:32.2]} 27...
Qa1+ {[%clk 0:01:56.4]} 28. Re1 {[%clk 0:01:30.1]} 28... Nh5 {[%clk 0:01:51.5]}
29. Qxe5 {[%clk 0:01:24.9]} 29... Qxe5 {[%clk 0:01:41.8]} 30. Rxe5 {[%clk
0:01:25.8]} 30... Nf4 {[%clk 0:01:39.4]} 31. Rc5 {[%clk 0:01:21.8]} 31... Rcd8
{[%clk 0:01:32.1]} 32. Be4 {[%clk 0:01:16.4]} 32... f5 {[%clk 0:01:23.4]} 33.
Bb7 {[%clk 0:01:14.9]} 33... Rd2 {[%clk 0:01:21.6]} 34. Rb4 {[%clk 0:00:48]}
34... Nxg2 {[%clk 0:01:18.2]} 35. Rc8 {[%clk 0:00:43.3]} 35... Ne3 {[%clk
0:01:02.4]} 36. Rxd8+ {[%clk 0:00:36.3]} 36... Rxd8 {[%clk 0:01:03.3]} 37. c4
{[%clk 0:00:36.9]} 37... Rd1+ {[%clk 0:00:50.8]} 38. Kh2 {[%clk 0:00:36.5]}
38... Rc1 {[%clk 0:00:51.2]} 39. Ba6 {[%clk 0:00:34.9]} 39... Kf7 {[%clk
0:00:50.3]} 40. Kg3 {[%clk 0:00:30.8]} 40... Kf6 {[%clk 0:00:49.8]} 41. Rb7
{[%clk 0:00:22.7]} 41... e5 {[%clk 0:00:40.5]} 42. Rxa7 {[%clk 0:00:20.2]} 42...
f4+ {[%clk 0:00:38.6]} 43. Kf2 {[%clk 0:00:20.3]} 43... Nxc4 {[%clk 0:00:37.9]}
44. Rc7 {[%clk 0:00:18.9]} 44... Rc2+ {[%clk 0:00:37.8]} 45. Ke1 {[%clk
0:00:18.7]} 45... Ne3 {[%clk 0:00:35.2]} 46. Rxc2 {[%clk 0:00:18.3]} 46... Nxc2+
{[%clk 0:00:35.2]} 47. Kd2 {[%clk 0:00:14.8]} 47... Nb4 {[%clk 0:00:35.1]} 48.
Bc4 {[%clk 0:00:14.7]} 48... g5 {[%clk 0:00:33.9]} 49. hxg5+ {[%clk 0:00:14.5]}
49... Kxg5 {[%clk 0:00:33.7]} 50. a4 {[%clk 0:00:15.1]} 50... h5 {[%clk
0:00:32.8]} 51. Kc3 {[%clk 0:00:15]} 51... Nc6 {[%clk 0:00:31.8]} 52. Bd5 {[%clk
0:00:15.3]} 52... Na7 {[%clk 0:00:31.3]} 53. Be6 {[%clk 0:00:15.2]} 53... Kf6
{[%clk 0:00:27.7]} 54. Bh3 {[%clk 0:00:13.7]} 54... Ke7 {[%clk 0:00:26]} 55. Kc4
{[%clk 0:00:13.9]} 55... Kd6 {[%clk 0:00:26]} 56. Kb4 {[%clk 0:00:14]} 56... Kd5
{[%clk 0:00:25.5]} 57. Bf5 {[%clk 0:00:13.9]} 57... Kd4 {[%clk 0:00:25.3]} 58.
a5 {[%clk 0:00:13.6]} 58... Nc6+ {[%clk 0:00:23]} 59. Kb5 {[%clk 0:00:13.5]}
59... Nxa5 {[%clk 0:00:23.2]} 60. Kxa5 {[%clk 0:00:14]} 60... h4 {[%clk
0:00:23.5]} 61. Kb4 {[%clk 0:00:12.2]} 61... e4 {[%clk 0:00:21.1]} 62. fxe4
{[%clk 0:00:07.9]} 62... f3 {[%clk 0:00:20.5]} 63. Bh3 {[%clk 0:00:07.8]} 63...
Kxe4 {[%clk 0:00:20.5]} 64. Kc3 {[%clk 0:00:08.5]} 64... Ke3 {[%clk 0:00:21.2]}
65. Kc2 {[%clk 0:00:08.4]} 65... Ke2 {[%clk 0:00:21.2]} 66. Kc3 {[%clk
0:00:08.7]} 66... f2 {[%clk 0:00:21.2]} 67. Kd4 {[%clk 0:00:09.1]} 67... f1=Q
{[%clk 0:00:21]} 68. Bxf1+ {[%clk 0:00:09.7]} 68... Kxf1 {[%clk 0:00:21.3]} 69.
Ke3 {[%clk 0:00:10.6]} 69... Kg2 {[%clk 0:00:21.6]} 70. Ke2 {[%clk 0:00:10.7]}
70... h3 {[%clk 0:00:22.1]} 0-1

[Event "*** SCC Grand Prix: Titled Tuesday Blitz"]
[Site "Chess.com"]
[Date "2020.07.07"]
[Round "2"]
[White "David_Paravyan"]
[Black "PavelShkapenko"]
[Result "1/2-1/2"]
[WhiteElo "2979"]
[BlackElo "2602"]
[TimeControl "180+1"]
[EndTime "10:19:57 PDT"]
[Termination "Game drawn - insufficient material"]

1. d4 {[%clk 0:03:00.9]} 1... Nf6 {[%clk 0:02:59.5]} 2. Nf3 {[%clk 0:03:01.3]}
2... e6 {[%clk 0:02:59.8]} 3. e3 {[%clk 0:03:01.9]} 3... c5 {[%clk 0:02:59.3]}
4. Bd3 {[%clk 0:03:02]} 4... d5 {[%clk 0:02:57.8]} 5. O-O {[%clk 0:03:01.7]}
5... Nc6 {[%clk 0:02:51.6]} 6. b3 {[%clk 0:03:00.8]} 6... Bd6 {[%clk 0:02:50.8]}
7. dxc5 {[%clk 0:03:00.1]} 7... Bxc5 {[%clk 0:02:50.4]} 8. Bb2 {[%clk
0:03:00.8]} 8... O-O {[%clk 0:02:48.7]} 9. c4 {[%clk 0:02:54]} 9... Nb4 {[%clk
0:02:38.8]} 10. Nc3 {[%clk 0:02:54.2]} 10... Nxd3 {[%clk 0:02:36.9]} 11. Qxd3
{[%clk 0:02:55.1]} 11... dxc4 {[%clk 0:02:26]} 12. Qxc4 {[%clk 0:02:56]} 12...
Bb6 {[%clk 0:02:26.5]} 13. Ba3 {[%clk 0:02:17.8]} 13... Re8 {[%clk 0:02:24.2]}
14. Nb5 {[%clk 0:02:16.4]} 14... Qd5 {[%clk 0:02:16.6]} 15. Rfd1 {[%clk
0:01:53]} 15... Qxc4 {[%clk 0:02:16]} 16. bxc4 {[%clk 0:01:53.9]} 16... Bd7
{[%clk 0:01:57.6]} 17. Nd6 {[%clk 0:01:51.1]} 17... Reb8 {[%clk 0:01:57.5]} 18.
Ne5 {[%clk 0:01:06.6]} 18... Be8 {[%clk 0:01:55.3]} 19. Rab1 {[%clk 0:00:59.3]}
19... Bc7 {[%clk 0:01:54.2]} 20. c5 {[%clk 0:00:44.2]} 20... b6 {[%clk
0:01:27.4]} 21. c6 {[%clk 0:00:35]} 21... Rd8 {[%clk 0:01:19.8]} 22. Rbc1 {[%clk
0:00:23.3]} 22... Nd5 {[%clk 0:01:07.8]} 23. e4 {[%clk 0:00:23.6]} 23... Bxd6
{[%clk 0:00:53.8]} 24. Bxd6 {[%clk 0:00:24]} 24... Rxd6 {[%clk 0:00:54.3]} 25.
exd5 {[%clk 0:00:24.1]} 25... Rxd5 {[%clk 0:00:45.5]} 26. Rxd5 {[%clk
0:00:23.1]} 26... exd5 {[%clk 0:00:46]} 27. f4 {[%clk 0:00:04.7]} 27... Kf8
{[%clk 0:00:43.9]} 28. Kf2 {[%clk 0:00:04.7]} 28... Ke7 {[%clk 0:00:42.8]} 29.
Ke3 {[%clk 0:00:04.9]} 29... Kd6 {[%clk 0:00:42.9]} 30. Kd4 {[%clk 0:00:03.5]}
30... f6 {[%clk 0:00:42.9]} 31. Nd3 {[%clk 0:00:03.2]} 31... Bxc6 {[%clk
0:00:42.4]} 32. Nb4 {[%clk 0:00:02]} 32... Bb7 {[%clk 0:00:42.6]} 33. Nd3 {[%clk
0:00:01.9]} 33... Rc8 {[%clk 0:00:38.8]} 34. Rxc8 {[%clk 0:00:01.5]} 34... Bxc8
{[%clk 0:00:38.7]} 35. g3 {[%clk 0:00:02.2]} 35... a5 {[%clk 0:00:36.5]} 36. a3
{[%clk 0:00:01.5]} 36... Bf5 {[%clk 0:00:35.8]} 37. Nc1 {[%clk 0:00:01.6]} 37...
Bc2 {[%clk 0:00:32.7]} 38. Na2 {[%clk 0:00:01.9]} 38... b5 {[%clk 0:00:28.8]}
39. Nc3 {[%clk 0:00:02.8]} 39... b4 {[%clk 0:00:29.2]} 40. axb4 {[%clk
0:00:03.4]} 40... axb4 {[%clk 0:00:29.6]} 41. Nxd5 {[%clk 0:00:02]} 41... b3
{[%clk 0:00:30]} 42. Ne3 {[%clk 0:00:02.7]} 42... b2 {[%clk 0:00:28.8]} 43. Nc4+
{[%clk 0:00:02.6]} 43... Ke6 {[%clk 0:00:27.9]} 44. Nxb2 {[%clk 0:00:03.5]}
44... Kf5 {[%clk 0:00:28]} 45. Ke3 {[%clk 0:00:04.1]} 45... Kg4 {[%clk
0:00:27.9]} 46. Kf2 {[%clk 0:00:04.8]} 46... g5 {[%clk 0:00:26.2]} 47. fxg5
{[%clk 0:00:04.1]} 47... fxg5 {[%clk 0:00:25.8]} 48. Nc4 {[%clk 0:00:04.7]}
48... Bb3 {[%clk 0:00:18.8]} 49. Ne3+ {[%clk 0:00:04.6]} 49... Kh5 {[%clk
0:00:18.9]} 50. Kf3 {[%clk 0:00:04.7]} 50... Be6 {[%clk 0:00:18.8]} 51. Ke4
{[%clk 0:00:05.1]} 51... Kg6 {[%clk 0:00:19]} 52. Ke5 {[%clk 0:00:05.6]} 52...
Bd7 {[%clk 0:00:18.9]} 53. Kd6 {[%clk 0:00:06.2]} 53... Bh3 {[%clk 0:00:18.3]}
54. Ke5 {[%clk 0:00:06.5]} 54... h5 {[%clk 0:00:18.2]} 55. Kd4 {[%clk
0:00:06.6]} 55... Bc8 {[%clk 0:00:16.9]} 56. Ke4 {[%clk 0:00:06.7]} 56... Bb7+
{[%clk 0:00:16.7]} 57. Ke5 {[%clk 0:00:07.1]} 57... Bc8 {[%clk 0:00:16.9]} 58.
Nd5 {[%clk 0:00:07.4]} 58... Bb7 {[%clk 0:00:15.4]} 59. Ne7+ {[%clk 0:00:07.7]}
59... Kf7 {[%clk 0:00:15.6]} 60. Nf5 {[%clk 0:00:08.1]} 60... Kg6 {[%clk
0:00:15.8]} 61. Nd6 {[%clk 0:00:08.3]} 61... Bc6 {[%clk 0:00:15.3]} 62. Nc8
{[%clk 0:00:08.6]} 62... Bb7 {[%clk 0:00:15.3]} 63. Ne7+ {[%clk 0:00:08.7]}
63... Kf7 {[%clk 0:00:15.5]} 64. Nf5 {[%clk 0:00:09.2]} 64... Kg6 {[%clk
0:00:15.3]} 65. Ne3 {[%clk 0:00:09.6]} 65... Ba8 {[%clk 0:00:15]} 66. Nc4 {[%clk
0:00:10]} 66... h4 {[%clk 0:00:15]} 67. Ke6 {[%clk 0:00:08.2]} 67... hxg3 {[%clk
0:00:15]} 68. hxg3 {[%clk 0:00:09.1]} 68... Bb7 {[%clk 0:00:14.8]} 69. Ne5+
{[%clk 0:00:09.7]} 69... Kh5 {[%clk 0:00:14.3]} 70. Kf5 {[%clk 0:00:10.1]} 70...
Bc8+ {[%clk 0:00:14.5]} 71. Kf6 {[%clk 0:00:10.8]} 71... Bh3 {[%clk 0:00:14.2]}
72. Kg7 {[%clk 0:00:10.3]} 72... Bc8 {[%clk 0:00:13.2]} 73. Kf6 {[%clk
0:00:10.8]} 73... Bh3 {[%clk 0:00:12.3]} 74. Nf3 {[%clk 0:00:10.6]} 74... Kg4
{[%clk 0:00:12.1]} 75. Nxg5 {[%clk 0:00:10.6]} 75... Kxg3 {[%clk 0:00:12.5]}
1/2-1/2

[Event "*** SCC Grand Prix: Titled Tuesday Blitz"]
[Site "Chess.com"]
[Date "2020.07.07"]
[Round "2"]
[White "The_Machine04"]
[Black "Nafania1"]
[Result "1-0"]
[WhiteElo "2287"]
[BlackElo "2448"]
[TimeControl "180+1"]
[EndTime "10:19:58 PDT"]
[Termination "The_Machine04 won by resignation"]

1. d4 {[%clk 0:03:00.9]} 1... Nf6 {[%clk 0:02:59.5]} 2. Bg5 {[%clk 0:02:59.3]}
2... c5 {[%clk 0:02:58.2]} 3. Bxf6 {[%clk 0:02:58.6]} 3... gxf6 {[%clk 0:02:58]}
4. d5 {[%clk 0:02:57.4]} 4... d6 {[%clk 0:02:53.5]} 5. c4 {[%clk 0:02:57.1]}
5... f5 {[%clk 0:02:51.2]} 6. Nc3 {[%clk 0:02:56.2]} 6... Bg7 {[%clk 0:02:51.4]}
7. Qc2 {[%clk 0:02:55.6]} 7... Qa5 {[%clk 0:02:44.7]} 8. Rc1 {[%clk 0:02:53.9]}
8... a6 {[%clk 0:02:39]} 9. e3 {[%clk 0:02:51.7]} 9... e5 {[%clk 0:02:16.7]} 10.
Bd3 {[%clk 0:02:49.4]} 10... e4 {[%clk 0:02:16.2]} 11. Be2 {[%clk 0:02:49.3]}
11... Nd7 {[%clk 0:02:13.4]} 12. Nh3 {[%clk 0:02:47]} 12... Ne5 {[%clk
0:02:07.4]} 13. Nf4 {[%clk 0:02:42.5]} 13... Rg8 {[%clk 0:01:49.4]} 14. O-O
{[%clk 0:02:33.4]} 14... Bd7 {[%clk 0:01:49.5]} 15. a4 {[%clk 0:02:09.3]} 15...
O-O-O {[%clk 0:01:35.6]} 16. Rb1 {[%clk 0:01:57.1]} 16... Bh8 {[%clk 0:01:24.2]}
17. Rfc1 {[%clk 0:01:49]} 17... Rde8 {[%clk 0:01:00]} 18. b3 {[%clk 0:01:37]}
18... Rg5 {[%clk 0:00:37.6]} 19. Na2 {[%clk 0:01:31.9]} 19... Nf3+ {[%clk
0:00:25.6]} 20. Kh1 {[%clk 0:01:06.6]} 20... Nh4 {[%clk 0:00:25.7]} 21. g3
{[%clk 0:01:00.3]} 21... Nf3 {[%clk 0:00:24.4]} 22. Kg2 {[%clk 0:00:53.4]} 22...
Reg8 {[%clk 0:00:21.1]} 23. Bxf3 {[%clk 0:00:50.7]} 23... exf3+ {[%clk
0:00:21.4]} 24. Kxf3 {[%clk 0:00:51.3]} 24... h5 {[%clk 0:00:20.8]} 25. h4
{[%clk 0:00:50.4]} 25... Rg4 {[%clk 0:00:21]} 26. Re1 {[%clk 0:00:25]} 26... Be5
{[%clk 0:00:20.9]} 27. Nc1 {[%clk 0:00:21.3]} 27... Rh8 {[%clk 0:00:20.6]} 28.
Ncd3 {[%clk 0:00:19.6]} 28... Kb8 {[%clk 0:00:20]} 29. Kg2 {[%clk 0:00:17.6]}
29... Qd8 {[%clk 0:00:19.2]} 30. Kh3 {[%clk 0:00:16.6]} 30... Rhg8 {[%clk
0:00:18.5]} 31. Rh1 {[%clk 0:00:15.3]} 31... Rh8 {[%clk 0:00:18.3]} 32. Kg2
{[%clk 0:00:14.8]} 32... Qf6 {[%clk 0:00:18.2]} 33. Kf1 {[%clk 0:00:14.7]} 33...
Re8 {[%clk 0:00:17.5]} 34. Ke2 {[%clk 0:00:14.6]} 34... Qg7 {[%clk 0:00:16.5]}
35. Kd2 {[%clk 0:00:14.4]} 35... Qh8 {[%clk 0:00:16.2]} 36. Rbg1 {[%clk
0:00:13.9]} 36... a5 {[%clk 0:00:16]} 37. Re1 {[%clk 0:00:13.4]} 37... b6 {[%clk
0:00:16.1]} 38. Rhg1 {[%clk 0:00:11.6]} 38... Qh7 {[%clk 0:00:15.7]} 39. Re2
{[%clk 0:00:09.9]} 39... Reg8 {[%clk 0:00:15.1]} 40. Ne1 {[%clk 0:00:09.5]}
40... Qh6 {[%clk 0:00:14.5]} 41. Nf3 {[%clk 0:00:09.2]} 41... Qh7 {[%clk
0:00:13.3]} 42. Rge1 {[%clk 0:00:08.7]} 42... f6 {[%clk 0:00:13.2]} 43. Ne6
{[%clk 0:00:07.7]} 43... Bxe6 {[%clk 0:00:13.2]} 44. dxe6 {[%clk 0:00:08.6]}
44... Qb7 {[%clk 0:00:13.1]} 45. Qxf5 {[%clk 0:00:05.8]} 45... Ka7 {[%clk
0:00:12.7]} 46. Nxe5 {[%clk 0:00:05.5]} 46... fxe5 {[%clk 0:00:12]} 47. Kc1
{[%clk 0:00:03.9]} 47... R8g7 {[%clk 0:00:11]} 48. Qc2 {[%clk 0:00:04.8]} 48...
Qf3 {[%clk 0:00:09.9]} 49. Qd2 {[%clk 0:00:05.7]} 49... Re7 {[%clk 0:00:08.1]}
50. Qd5 {[%clk 0:00:06.1]} 50... Qxd5 {[%clk 0:00:07]} 51. cxd5 {[%clk 0:00:07]}
51... Kb7 {[%clk 0:00:06.8]} 52. Kc2 {[%clk 0:00:07.3]} 52... Kc7 {[%clk
0:00:07.1]} 53. e4 {[%clk 0:00:07.6]} 53... Re8 {[%clk 0:00:06.7]} 54. Kd3
{[%clk 0:00:08.5]} 54... Kd8 {[%clk 0:00:07.1]} 55. Ke3 {[%clk 0:00:08.9]} 55...
Reg8 {[%clk 0:00:06.5]} 56. Rg1 {[%clk 0:00:09.1]} 56... Ke7 {[%clk 0:00:06.8]}
57. Rg2 {[%clk 0:00:09.4]} 57... Kf6 {[%clk 0:00:06.9]} 58. Re1 {[%clk
0:00:09.8]} 58... R8g7 {[%clk 0:00:06.9]} 59. Reg1 {[%clk 0:00:10.2]} 59... Rg8
{[%clk 0:00:06.4]} 60. f3 {[%clk 0:00:10.4]} 60... R4g6 {[%clk 0:00:06.6]} 61.
g4 {[%clk 0:00:10.8]} 61... hxg4 {[%clk 0:00:05.8]} 62. Rxg4 {[%clk 0:00:11.7]}
62... Rxg4 {[%clk 0:00:04.4]} 63. Rxg4 {[%clk 0:00:12.6]} 63... Rxg4 {[%clk
0:00:03.9]} 64. fxg4 {[%clk 0:00:12.6]} 64... Ke7 {[%clk 0:00:03.4]} 65. g5
{[%clk 0:00:12.4]} 65... b5 {[%clk 0:00:02.3]} 66. axb5 {[%clk 0:00:12.2]} 66...
c4 {[%clk 0:00:02.6]} 67. bxc4 {[%clk 0:00:10.9]} 67... a4 {[%clk 0:00:03]} 68.
Kd3 {[%clk 0:00:11.2]} 68... a3 {[%clk 0:00:03.4]} 69. Kc2 {[%clk 0:00:11.4]}
69... a2 {[%clk 0:00:03.9]} 70. Kb2 {[%clk 0:00:11.4]} 1-0